bitfinex/quotes_ETHUSD_20250213
["timestamp","ask_amount","ask_price","bid_price","bid_amount"]
[1739474012690,0.295,2663.5,2663.2,3.75475]
[1739474012888,0.11615471,2663.4,2663.2,3.75475]
[1739474013190,0.11615471,2663.4,2663.1,3.75494]
[1739474013362,0.11615471,2663.4,2663.1,3.75492]
[1739474013748,0.11615471,2663.4,2663.2,3.75485]
[1739474013997,0.11615471,2663.4,2663.3,3.75474]
[1739474014206,0.11615471,2663.4,2663.2,3.75485]
[1739474014357,0.11615471,2663.4,2663.1,3.75499]
[1739474015419,0.11615471,2663.4,2663.0,3.75506]
[1739474015712,0.11615471,2663.4,2663.0,7.51015]
[1739474015861,0.11615471,2663.4,2663.1,3.75497]
[1739474016308,0.11615471,2663.4,2662.8,4.50648]
[1739474016616,3.75494,2663.2,2662.8,0.7511]
[1739474016968,0.11601142,2663.1,2662.8,0.7511]
[1739474017517,0.11601142,2663.1,2662.8,4.50654]
[1739474017657,0.11601142,2663.1,2662.7,6.50765841]
[1739474017658,3.87109142,2663.1,2662.7,6.50765841]
[1739474017862,3.87109142,2663.1,2662.7,2.75210841]
[1739474018064,3.75523,2663.0,2662.7,2.75210841]
[1739474018263,3.87111604,2663.0,2662.7,2.75210841]
[1739474018875,3.7553,2662.9,2662.7,2.75210841]
[1739474019080,3.8710696,2662.9,2662.7,2.75210841]
[1739474019688,6.1280696,2662.9,2662.7,2.75210841]
[1739474020016,0.61280696,2662.8,2662.7,2.75210841]
[1739474020162,0.11562628,2662.8,2662.7,2.75210841]
[1739474020868,2.257,2663.0,2662.7,2.75210841]
[1739474021069,0.11562628,2662.8,2662.7,6.50766841]
[1739474021309,2.257,2663.2,2662.8,3.75537]
[1739474022518,6.01197,2663.2,2662.7,6.50761841]
[1739474022817,7.09034492,2663.2,2662.7,6.50761841]
[1739474023029,3.33537492,2663.2,2662.8,3.75544]
[1739474023183,0.295,2663.1,2662.8,3.75544]
[1739474023518,0.295,2663.1,2662.9,3.75529]
[1739474024918,0.295,2663.1,2662.9,7.51052]
[1739474025123,0.295,2663.1,2662.8,0.7655]
[1739474025260,0.295,2663.1,2662.9,3.7553]
[1739474025664,2.552,2663.5,2663.2,3.75474]
[1739474026218,0.295,2663.5,2663.2,3.75487]
[1739474026813,2.552,2663.5,2663.2,3.75487]
[1739474027353,2.552,2663.5,2663.2,3.75486]
[1739474027901,0.11536658,2663.4,2663.2,3.75479]
[1739474028199,0.11536658,2663.4,2663.3,3.75474]
[1739474028951,0.11536658,2663.4,2663.2,0.375479]
[1739474029301,0.11536658,2663.4,2663.1,3.75494]
[1739474029661,0.11536658,2663.4,2663.3,3.75474]
[1739474029946,0.11536658,2663.4,2663.2,3.75474]
[1739474030104,0.11536658,2663.4,2663.3,3.75474]
[1739474030308,0.11536658,2663.4,2663.3,4.50994]
[1739474030538,0.11536658,2663.4,2663.3,5.336408]
[1739474031048,0.11551884,2663.4,2663.1,3.7549]
[1739474031205,0.11551884,2663.4,2663.2,3.75488]
[1739474031401,3.75494,2663.2,2662.8,3.75538]
[1739474031603,3.75494,2663.2,2662.6,0.8047]
[1739474031604,0.115689,2663.1,2662.7,6.50760841]
[1739474031837,3.870729,2663.1,2662.7,2.75210841]
[1739474032151,3.75517,2663.0,2662.7,2.75210841]
[1739474032504,0.11535762,2662.9,2662.7,2.75210841]
[1739474033536,3.87065762,2662.9,2662.7,2.75210841]
[1739474033737,3.75544,2662.8,2662.7,2.75210841]
[1739474033941,3.87067762,2662.9,2662.7,2.75210841]
[1739474034260,0.11535762,2662.8,2662.7,2.75210841]
[1739474035471,3.87079762,2662.8,2662.7,2.75210841]
[1739474035643,3.87079762,2662.8,2662.3,3.75605]
[1739474035955,0.11535762,2662.8,2662.4,3.756]
[1739474036550,0.11535762,2662.8,2662.3,3.75605]
[1739474036760,3.75561,2662.7,2662.3,3.75605]
[1739474036954,0.79928483,2662.8,2662.3,3.75605]
[1739474037157,0.11508887,2662.6,2662.4,3.75597]
[1739474037456,0.11508887,2662.5,2662.4,3.75597]
[1739474037635,3.75532,2662.9,2662.4,3.75597]
[1739474037954,0.11508887,2662.5,2662.4,3.75597]
[1739474038159,3.75532,2662.9,2662.4,3.75597]
[1739474038752,0.11508887,2662.8,2662.4,3.75597]
[1739474039045,3.75525,2663.0,2662.5,3.7558]
[1739474039220,0.11508887,2662.7,2662.5,3.7558]
[1739474039431,3.75531,2662.9,2662.5,3.7558]
[1739474039757,0.11482008,2662.6,2662.4,3.756]
[1739474039922,3.75531,2662.9,2662.4,3.756]
[1739474040123,0.11482008,2662.5,2662.4,3.756]
[1739474040759,4.20541348,2663.0,2662.5,3.75579]
[1739474040926,0.87077583,2662.9,2662.5,3.75579]
[1739474042206,3.80238647,2662.8,2662.2,0.814]
[1739474042501,0.87077583,2662.9,2662.3,3.75613]
[1739474042657,0.87077583,2662.9,2662.2,0.814]
[1739474042658,4.62608583,2662.9,2662.4,3.75589]
[1739474043000,4.62608583,2662.9,2662.2,0.814]
[1739474043001,0.11452438,2662.8,2662.7,3.75558]
[1739474043160,0.11452438,2662.8,2662.2,4.4485104]
[1739474043365,0.295,2662.9,2662.6,3.75569]
[1739474043995,0.11451542,2662.8,2662.2,4.57019]
[1739474044198,3.86995542,2662.8,2662.3,3.75606]
[1739474044687,8.41751996,2662.8,2662.3,3.75606]
[1739474045011,3.75558,2662.7,2662.3,3.75612]
[1739474045308,0.11473048,2662.6,2662.2,4.57025]
[1739474046914,2.37173048,2662.6,2662.2,4.57025]
[1739474047713,2.37173048,2662.6,2662.1,6.75643]
[1739474048233,3.75587,2662.5,2662.1,6.75643]
[1739474048733,0.11473048,2662.4,2662.3,3.75615]
[1739474049082,6.01258,2662.7,2662.3,3.75615]
[1739474049429,0.11473048,2662.4,2662.3,3.75615]
[1739474049597,2.257,2662.7,2662.3,3.75615]
[1739474049808,0.11473048,2662.6,2662.3,3.75615]
[1739474050304,0.11473048,2662.6,2662.3,3.75613]
[1739474050904,0.11473048,2662.6,2662.1,3.7564]
[1739474051104,0.11473048,2662.6,2662.2,3.75628]
[1739474051321,3.87049048,2662.6,2662.2,3.75628]
[1739474051659,0.11473048,2662.6,2662.2,3.75628]
[1739474052132,3.87046048,2662.6,2662.2,3.75628]
[1739474053136,3.75587,2662.5,2662.1,3.7564]
[1739474053336,4.85876453,2662.6,2662.1,3.7564]
[1739474053532,0.11438098,2662.4,2662.2,3.75619]
[1739474053730,0.11438098,2662.4,2662.0,0.8103]
[1739474053731,2.257,2662.7,2662.3,3.75615]
[1739474054092,6.01264,2662.7,2662.3,3.75615]
[1739474054735,3.75577,2662.6,2662.2,3.75627]
[1739474054939,2.257,2662.7,2662.2,3.75627]
[1739474055083,6.01266,2662.7,2662.2,3.75627]
[1739474055587,9.76835,2662.7,2662.2,3.75627]
[1739474055850,3.75579,2662.6,2662.2,3.75627]
[1739474057180,3.75579,2662.6,2662.2,3.75622]
[1739474057876,0.11438098,2662.5,2662.2,3.75622]
[1739474058104,0.11438098,2662.5,2662.2,3.75619]
[1739474059849,3.75573,2662.6,2662.2,3.75619]
[1739474060049,0.11438098,2662.4,2662.2,3.75619]
[1739474060301,3.75573,2662.6,2662.2,3.75619]
[1739474060463,0.11438098,2662.3,2662.2,3.75619]
[1739474060676,3.75573,2662.6,2662.2,3.75619]
[1739474060867,0.11438098,2662.3,2662.2,3.75619]
[1739474061067,3.75573,2662.6,2662.2,3.75619]
[1739474061268,0.11438098,2662.3,2662.2,3.75619]
[1739474061469,3.75573,2662.6,2662.2,3.75619]
[1739474061667,0.11438098,2662.3,2662.2,3.75619]
[1739474061910,3.75639,2662.2,2661.7,4.51233]
[1739474062087,3.7567,2662.0,2661.5,3.75721]
[1739474062294,4.0517,2662.0,2661.5,3.75721]
[1739474062470,3.87075667,2661.9,2661.4,4.51275]
[1739474062993,3.75692,2661.8,2661.3,3.75746]
[1739474063168,3.75702,2661.7,2661.2,8.28322]
[1739474063373,3.87063017,2661.7,2661.2,8.28322]
[1739474063571,0.11361017,2661.7,2661.2,0.768]
[1739474063888,3.75673,2661.9,2661.4,3.75732]
[1739474064089,0.11330529,2661.6,2661.4,3.75732]
[1739474064252,6.30859,2662.0,2661.4,3.75732]
[1739474064253,2.552,2662.0,2661.7,3.75698]
[1739474064885,0.295,2662.0,2661.7,3.75693]
[1739474065104,2.257,2662.3,2661.9,3.75671]
[1739474065313,2.257,2662.3,2662.0,3.75649]
[1739474065459,0.015,2662.4,2662.3,3.75615]
[1739474065460,0.295,2662.4,2662.3,3.75615]
[1739474066463,0.295,2662.5,2662.4,3.75598]
[1739474066659,0.015,2663.1,2662.2,0.8289]
[1739474066864,0.295,2662.7,2662.3,3.75604]
[1739474067094,0.295,2662.7,2661.9,3.75662]
[1739474067095,0.015,2662.5,2661.9,3.75662]
[1739474067318,3.75636,2662.2,2661.7,4.56359]
[1739474067467,7.51274,2662.2,2661.7,3.75699]
[1739474067658,3.75644,2662.1,2661.5,7.56378]
[1739474067860,3.75644,2662.1,2661.5,5.34741324]
[1739474068118,2.257,2662.2,2661.5,0.8066]
[1739474068410,3.75657,2662.0,2661.4,3.75731]
[1739474068591,3.75672,2661.9,2661.4,3.75731]
[1739474069105,7.51353,2661.9,2661.4,3.75731]
[1739474069263,3.75657,2662.0,2661.5,3.75718]
[1739474069463,3.75673,2661.9,2661.5,3.75718]
[1739474069958,3.75685,2661.8,2661.3,4.51285]
[1739474070414,0.295,2661.7,2661.2,3.7576]
[1739474070912,4.05202,2661.7,2661.2,3.7576]
[1739474071208,4.05202,2661.7,2661.1,3.75773]
[1739474071414,6.30902,2661.7,2661.1,7.51549]
[1739474071565,7.3907358,2661.7,2661.1,7.51549]
[1739474072013,0.295,2661.7,2661.4,3.75734]
[1739474072318,0.295,2661.7,2661.2,3.7577]
[1739474072495,0.295,2661.7,2661.3,3.75744]
[1739474072663,0.295,2661.7,2661.3,3.75756]
[1739474072862,0.11330529,2661.6,2661.3,3.75756]
[1739474073063,0.11330529,2661.6,2661.3,4.509086]
[1739474073609,0.11330529,2661.6,2661.2,3.75762]
[1739474073824,0.11330529,2661.6,2661.0,0.8184]
[1739474073825,0.11330529,2661.6,2661.5,3.75727]
[1739474073970,0.11330529,2661.6,2661.5,4.52877]
[1739474074311,0.295,2662.2,2661.7,3.75689]
[1739474074507,4.05131,2662.2,2661.7,3.75689]
[1739474074812,0.295,2662.2,2661.7,3.75697]
[1739474075110,0.295,2662.2,2661.8,3.75671]
[1739474075261,0.295,2662.2,2661.9,3.7567]
[1739474075685,0.295,2662.2,2661.8,3.75685]
[1739474076286,0.295,2662.2,2661.9,3.7567]
[1739474076481,0.295,2662.2,2662.0,3.75646]
[1739474076786,0.295,2662.2,2661.9,3.7567]
[1739474076985,0.295,2662.2,2661.9,4.1775747]
[1739474077401,3.75594,2662.5,2662.0,4.51477]
[1739474077703,0.295,2662.3,2662.0,4.51477]
[1739474077884,3.75638,2662.2,2661.7,4.51522]
[1739474078078,3.75638,2662.2,2661.4,3.75731]
[1739474078079,3.7565,2662.1,2661.6,3.75712]
[1739474078532,3.7565,2662.1,2661.7,0.02756224]
[1739474078533,0.295,2662.1,2661.7,0.02756224]
[1739474078857,0.295,2662.1,2662.0,3.75657]
[1739474079128,0.295,2662.3,2661.9,4.535]
[1739474079480,0.295,2662.3,2662.0,3.75656]
[1739474079896,0.295,2662.3,2661.9,4.535]
[1739474080582,0.295,2662.4,2662.0,3.75648]
[1739474080786,0.295,2662.4,2661.9,5.364173]
[1739474081010,4.05108,2662.4,2661.9,5.364173]
[1739474081839,3.75616,2662.3,2661.9,1.607473]
[1739474082034,2.257,2662.2,2661.9,0.7783]
[1739474082913,2.257,2662.2,2661.8,3.75684]
[1739474083350,2.257,2662.1,2661.7,0.7791]
[1739474083527,2.257,2661.9,2661.5,4.5891]
[1739474084228,3.75685,2661.8,2661.5,0.8319]
[1739474084429,6.01374,2661.9,2661.2,0.7526]
[1739474084627,2.257,2661.7,2661.3,3.75749]
[1739474084837,2.257,2661.7,2661.4,3.7573]
[1739474085831,2.257,2661.8,2661.6,3.75709]
[1739474086227,2.257,2661.8,2661.6,4.58979]
[1739474086799,2.257,2661.8,2661.6,4.58974]
[1739474086966,2.257,2661.8,2661.6,4.58973]
[1739474087255,2.257,2661.8,2661.7,3.75699]
[1739474087565,2.257,2661.8,2661.6,0.8327]
[1739474087712,2.257,2661.8,2661.6,4.58983]
[1739474087915,0.10877789,2661.7,2661.6,4.58983]
[1739474088249,2.257,2661.8,2661.6,4.58983]
[1739474088418,0.10877789,2661.7,2661.6,4.58983]
[1739474088759,2.257,2661.8,2661.6,4.58983]
[1739474088926,0.10877789,2661.7,2661.6,4.58983]
[1739474089129,2.257,2661.8,2661.6,4.58983]
[1739474089340,0.10877789,2661.7,2661.6,4.58983]
[1739474089544,2.257,2661.8,2661.7,3.75699]
[1739474089760,2.36577789,2661.8,2661.7,3.75699]
[1739474090227,2.36577789,2661.8,2661.6,0.8327]
[1739474090430,2.36577789,2661.8,2661.6,4.58979]
[1739474090643,2.36577789,2661.8,2661.6,4.58981]
[1739474091670,2.36577789,2661.8,2661.7,3.75699]
[1739474092274,2.36577789,2661.8,2661.6,4.58982]
[1739474092953,2.36577789,2661.8,2661.7,3.75699]
[1739474093124,0.10877789,2661.8,2661.7,3.75699]
[1739474094170,0.10877789,2661.8,2661.7,4.591671]
[1739474094373,0.10877789,2661.8,2661.7,4.61922494]
[1739474094579,0.295,2662.3,2661.9,3.75665]
[1739474094934,0.10879585,2662.2,2661.9,3.75665]
[1739474095130,6.30816,2662.3,2661.7,4.591581]
[1739474095470,0.10879585,2662.2,2661.8,3.75685]
[1739474095675,2.257,2662.1,2661.6,0.8327]
[1739474095872,0.10908328,2662.0,2661.7,3.7569]
[1739474096029,0.10908328,2662.0,2661.8,3.75685]
[1739474096488,0.10908328,2662.0,2661.9,3.75671]
[1739474097174,0.10908328,2662.0,2661.8,3.75673]
[1739474097379,0.10908328,2662.0,2661.9,3.75671]
[1739474097729,2.552,2662.2,2661.9,3.75671]
[1739474097980,0.10908328,2662.1,2661.9,3.75671]
[1739474098500,0.10908328,2662.1,2661.8,3.7568]
[1739474098701,0.10908328,2662.1,2661.9,3.7567]
[1739474098855,0.10908328,2662.1,2662.0,3.75657]
[1739474099376,0.10908328,2662.1,2662.0,5.284397]
[1739474100084,2.257,2662.4,2662.0,5.284397]
[1739474100394,2.257,2662.2,2661.9,3.75671]
[1739474100598,2.257,2662.2,2661.9,7.51335]
[1739474100800,0.10918207,2662.1,2662.0,3.75657]
[1739474101100,0.10918207,2662.1,2662.0,3.78412266]
[1739474101395,0.295,2662.6,2662.4,3.75597]
[1739474101695,3.6345104,2663.2,2662.0,0.83677627]
[1739474101696,0.295,2662.8,2662.5,3.72586]
[1739474102497,0.295,2662.8,2662.3,4.54804]
[1739474102498,2.552,2662.8,2662.3,3.75604]
[1739474102706,2.257,2662.5,2661.9,4.5744]
[1739474102852,3.75649,2662.1,2661.6,4.57493]
[1739474103048,0.10942452,2662.0,2661.6,4.57493]
[1739474103253,0.10942452,2662.0,2661.7,3.0]
[1739474103452,0.10942452,2662.0,2661.6,5.40814]
[1739474103703,6.01379,2661.9,2661.4,3.75735]
[1739474103856,10.06561,2661.9,2661.4,3.75735]
[1739474104053,0.12402939,2661.8,2661.5,3.0]
[1739474104452,0.12402939,2661.8,2661.5,6.75723]
[1739474104700,0.12402939,2661.8,2661.4,3.75741]
[1739474104905,0.12402939,2661.8,2661.5,3.0]
[1739474105352,0.12402939,2661.8,2661.6,3.75712]
[1739474105898,0.12402939,2661.8,2661.5,3.0]
[1739474106099,0.12402939,2661.8,2661.5,6.75726]
[1739474106603,0.12402939,2661.8,2661.5,3.0]
[1739474107157,0.12402939,2661.8,2661.5,6.75723]
[1739474107369,0.12402939,2661.8,2661.4,3.0]
[1739474107706,3.75727,2661.6,2661.0,0.7844]
[1739474107857,3.7574,2661.5,2661.0,0.7844]
[1739474108081,0.10836465,2661.4,2661.0,0.7844]
[1739474108425,3.86578465,2661.4,2661.0,0.7844]
[1739474108619,0.10836465,2661.4,2661.1,3.75784]
[1739474108824,0.10836465,2661.4,2661.2,3.75756]
[1739474109127,0.10810408,2661.3,2661.1,3.75784]
[1739474109371,2.272,2661.8,2661.3,3.75756]
[1739474109529,2.272,2661.8,2661.2,4.211796]
[1739474109682,6.02895,2661.8,2661.3,3.75742]
[1739474110032,6.02888,2661.8,2661.2,4.211796]
[1739474110361,6.02888,2661.8,2661.4,3.75732]
[1739474110362,0.015,2661.8,2661.4,3.75732]
[1739474110483,3.75678,2661.9,2661.4,3.75741]
[1739474111235,3.75678,2661.9,2661.4,3.75733]
[1739474111435,3.75678,2661.9,2661.4,7.51468]
[1739474111587,6.30858,2662.0,2661.5,3.75727]
[1739474111783,2.552,2662.0,2661.4,5.3471176]
[1739474111999,0.295,2662.2,2661.6,3.75713]
[1739474112199,3.75646,2662.1,2661.4,1.5897876]
[1739474112548,4.05129,2662.2,2661.7,3.75689]
[1739474112716,0.295,2662.2,2661.8,3.75685]
[1739474113603,3.75659,2662.0,2661.5,3.7572]
[1739474113818,3.75688,2661.8,2661.5,1.2738858]
[1739474114034,3.75713,2661.6,2661.3,3.0]
[1739474114347,3.75729,2661.5,2661.2,3.0]
[1739474114548,3.75713,2661.6,2661.2,3.0]
[1739474114900,0.015,2661.7,2661.2,6.75767]
[1739474115099,3.75689,2661.8,2661.3,3.75747]
[1739474115297,6.0136,2662.0,2661.4,3.7574]
[1739474115496,0.0075,2661.9,2661.5,3.7572]
[1739474115781,3.75686,2661.8,2661.3,3.75743]
[1739474116051,3.75706,2661.7,2661.2,4.509887]
[1739474116268,3.7646,2661.7,2661.2,4.509887]
[1739474116604,0.015,2661.5,2660.8,0.7767]
[1739474116805,3.75768,2661.3,2660.8,0.7767]
[1739474117036,3.75715,2661.6,2660.9,0.02758375]
[1739474117254,0.295,2661.7,2661.2,4.5343]
[1739474117481,4.05201,2661.7,2661.2,5.363503]
[1739474117789,0.295,2661.7,2661.5,3.75714]
[1739474118586,0.295,2661.7,2661.6,4.55553]
[1739474118945,3.75643,2662.1,2661.6,4.55553]
[1739474119485,3.75643,2662.1,2661.6,4.55545]
[1739474119986,2.552,2662.3,2661.7,3.75697]
[1739474120139,2.552,2662.3,2661.8,3.75675]
[1739474120491,3.75644,2662.1,2661.7,3.75697]
[1739474120723,6.30828,2662.3,2661.7,3.75697]
[1739474121023,3.75631,2662.2,2661.7,3.75697]
[1739474121232,3.75646,2662.1,2661.7,3.75697]
[1739474121527,3.75631,2662.2,2661.7,4.6713036]
[1739474121697,3.75631,2662.2,2661.7,3.75692]
[1739474122027,3.75643,2662.1,2661.7,3.75692]
[1739474122230,6.01373,2661.9,2661.3,4.57765]
[1739474122379,3.75707,2661.7,2661.2,3.75769]
[1739474122798,3.75714,2661.6,2661.2,3.75769]
[1739474123108,2.257,2661.9,2661.2,7.891246]
[1739474123313,6.02878,2661.9,2661.4,7.51475]
[1739474123629,2.552,2662.0,2661.3,0.8202]
[1739474123928,3.75686,2661.8,2661.3,4.57769]
[1739474124229,6.01399,2661.7,2661.3,0.8202]
[1739474124430,2.257,2661.7,2661.2,3.75768]
[1739474124595,4.05166,2662.0,2661.5,3.75724]
[1739474124815,4.05166,2662.0,2661.4,0.7915]
[1739474124816,3.75678,2661.9,2661.4,4.54891]
[1739474125043,4.05166,2662.0,2661.2,0.754918]
[1739474125044,3.76449,2661.8,2661.2,0.754918]
[1739474125246,3.75737,2661.5,2660.8,3.0]
[1739474125384,0.015,2661.6,2660.9,0.8014]
[1739474125580,0.015,2661.6,2661.2,3.75763]
[1739474126433,3.75709,2661.7,2661.3,3.75752]
[1739474126595,3.75709,2661.7,2661.2,3.75763]
[1739474126797,2.257,2661.6,2661.2,3.75761]
[1739474127031,2.257,2661.6,2661.3,3.75754]
[1739474127382,2.257,2661.6,2661.2,3.75761]
[1739474127729,6.0142,2661.6,2661.2,0.675761]
[1739474127939,6.0142,2661.6,2661.1,6.75782]
[1739474128130,6.0142,2661.6,2661.2,3.75769]
[1739474128505,6.014,2661.7,2660.9,3.8014]
[1739474128699,3.75735,2661.5,2661.1,3.0]
[1739474128914,6.01442,2661.4,2660.9,4.55944]
[1739474129603,6.01442,2661.4,2661.0,3.0]
[1739474129993,2.257,2661.4,2661.0,6.75791]
[1739474130302,2.257,2661.4,2661.1,3.75782]
[1739474130931,6.0142,2661.6,2661.0,1.49518604]
[1739474131133,0.0075,2661.9,2661.0,1.49518604]
[1739474131134,6.01468,2661.3,2661.0,3.0]
[1739474131437,6.01468,2661.3,2660.9,3.8014]
[1739474131604,6.01468,2661.3,2660.9,7.55951]
[1739474131935,3.75768,2661.3,2660.9,7.55951]
[1739474132129,3.75768,2661.3,2660.9,3.8014]
[1739474132627,3.75768,2661.3,2660.9,3.75807]
[1739474133132,3.75768,2661.3,2660.7,4.57608]
[1739474133133,3.86567948,2661.2,2660.7,4.57602]
[1739474133438,3.86567948,2661.2,2660.8,3.0]
[1739474133743,3.86567948,2661.2,2660.8,3.75819]
[1739474133941,0.10787948,2661.2,2660.9,3.0]
[1739474134138,6.01443,2661.4,2660.9,3.0]
[1739474134435,0.10778063,2661.1,2660.9,6.75812]
[1739474134740,0.10778063,2661.0,2660.8,6.75823]
[1739474134889,3.75756,2661.3,2660.8,6.75823]
[1739474135088,3.75795,2661.1,2660.7,3.8177]
[1739474135315,0.10772671,2661.0,2660.7,6.75834]
[1739474135530,0.10772671,2661.0,2660.7,3.0]
[1739474135943,0.10772671,2661.0,2660.7,6.75839]
[1739474136244,6.01443,2661.4,2660.9,3.75812]
[1739474136790,2.257,2661.4,2660.9,3.75812]
[1739474137015,3.75756,2661.3,2660.9,3.75812]
[1739474137708,3.75756,2661.3,2660.7,6.75839]
[1739474138009,6.01477,2661.2,2660.7,6.75839]
[1739474138224,3.75784,2661.1,2660.7,6.75839]
[1739474138719,6.0147,2661.2,2660.7,10.51669]
[1739474139039,2.257,2661.2,2660.7,3.75832]
[1739474139341,2.257,2661.2,2660.9,3.75803]
[1739474139556,2.257,2661.2,2660.8,6.75825]
[1739474139707,2.257,2661.2,2660.9,3.75806]
[1739474140011,6.01431,2661.5,2661.0,0.7654]
[1739474140205,6.01431,2661.5,2661.0,3.7654]
[1739474140447,6.01431,2661.5,2660.6,7.3929704]
[1739474140448,6.01456,2661.3,2660.7,3.7584]
[1739474140652,3.75776,2661.2,2660.7,7.51671]
[1739474140938,6.01476,2661.2,2660.7,3.75831]
[1739474141444,3.75786,2661.1,2660.7,3.75831]
[1739474141943,2.257,2661.2,2660.8,3.75825]
[1739474143552,6.01473,2661.2,2660.8,3.75825]
[1739474143712,2.272,2661.2,2660.8,3.75818]
[1739474144572,2.272,2661.2,2660.6,4.52384]
[1739474144573,6.02976,2661.2,2660.7,6.75839]
[1739474146250,2.272,2661.2,2660.8,3.75822]
[1739474146403,2.257,2661.1,2660.9,3.75809]
[1739474146596,2.257,2661.1,2660.7,6.75831]
[1739474146945,2.257,2661.1,2660.8,3.75819]
[1739474147320,2.272,2661.2,2660.8,3.75819]
[1739474147664,2.272,2661.2,2660.7,6.75831]
[1739474147972,2.257,2661.0,2660.7,6.75831]
[1739474148174,2.257,2660.9,2660.1,0.8027]
[1739474148380,3.75899,2660.3,2660.1,0.8027]
[1739474148723,0.10720544,2660.2,2660.1,0.8027]
[1739474148917,3.75889,2660.4,2660.1,1.258916]
[1739474149133,0.10720544,2660.2,2660.1,1.258916]
[1739474149469,2.551,2660.7,2660.4,3.75881]
[1739474149669,0.43815459,2661.7,2660.3,3.6345104]
[1739474149833,0.3,2662.6,2660.3,3.6345104]
[1739474149834,3.75643,2662.2,2661.5,3.75726]
[1739474150031,0.375643,2662.2,2661.8,3.75685]
[1739474150234,3.75664,2662.0,2661.4,4.53454]
[1739474150565,0.015,2661.9,2661.4,0.7772]
[1739474150867,6.01411,2661.7,2661.1,3.75779]
[1739474151279,6.01416,2661.6,2661.0,4.56448]
[1739474151582,2.257,2661.4,2661.0,0.8066]
[1739474151885,3.75785,2661.1,2660.7,0.8138]
[1739474152040,3.758,2661.0,2660.5,3.75857]
[1739474152579,3.758,2661.0,2660.6,3.0]
[1739474153627,3.758,2661.0,2660.5,3.75857]
[1739474154745,3.758,2661.0,2660.5,7.51717]
[1739474155062,3.758,2661.0,2660.5,3.75857]
[1739474155258,2.257,2661.0,2660.4,0.8138]
[1739474155468,7.51648,2660.9,2660.4,0.8138]
[1739474155824,3.75835,2660.8,2660.2,7.56932]
[1739474156147,6.01522,2660.9,2660.3,3.75886]
[1739474156343,6.01521,2660.9,2660.3,3.75886]
[1739474156524,3.75848,2660.7,2660.2,7.56932]
[1739474157145,3.75862,2660.6,2660.2,3.8103]
[1739474157365,3.75862,2660.6,2660.2,3.0]
[1739474157875,0.015,2660.7,2660.2,6.75904]
[1739474158077,3.77341,2660.7,2660.2,6.75904]
[1739474158448,3.77341,2660.7,2660.2,10.51806]
[1739474158661,0.015,2660.7,2660.3,3.75896]
[1739474159092,0.015,2660.7,2660.0,0.817]
[1739474159298,3.77344,2660.7,2660.2,3.75904]
[1739474160495,0.015,2660.7,2660.2,3.75904]
[1739474160700,3.75827,2660.8,2660.3,3.75893]
[1739474160998,0.294,2660.7,2660.4,3.75882]
[1739474161195,0.294,2660.7,2660.1,3.75915]
[1739474161396,3.75855,2660.6,2660.1,3.75915]
[1739474161584,0.294,2660.7,2660.1,0.757615]
[1739474161765,0.294,2660.7,2660.4,3.75874]
[1739474162166,0.294,2660.7,2660.3,3.75883]
[1739474162504,4.05241,2660.7,2660.3,3.75883]
[1739474162802,0.294,2660.7,2660.2,3.0]
[1739474163107,0.10646825,2660.6,2660.3,4.49809254]
[1739474163457,0.10646825,2660.6,2660.5,3.75869]
[1739474163774,2.375643,2662.2,2661.1,0.7765]
[1739474164111,0.375643,2662.2,2661.6,3.75704]
[1739474164409,0.375643,2662.2,2661.7,4.53339]
[1739474164554,3.75653,2662.1,2661.6,3.75709]
[1739474165007,3.75653,2662.1,2661.5,6.75726]
[1739474165165,3.75653,2662.1,2661.5,3.0]
[1739474165387,3.75702,2661.7,2661.2,3.75763]
[1739474165584,3.75725,2661.6,2661.0,4.57805]
[1739474165963,3.75685,2661.9,2661.3,3.75756]
[1739474166081,4.0101534,2662.2,2661.6,3.757]
[1739474166082,3.7563,2662.2,2661.6,3.757]
[1739474166285,0.294,2662.2,2661.7,3.75697]
[1739474166615,0.294,2662.2,2661.5,0.755]
[1739474166616,3.75655,2662.1,2661.5,3.755]
[1739474166933,3.75671,2661.9,2661.5,3.755]
[1739474167428,3.75679,2661.9,2661.4,3.0]
[1739474167732,3.75679,2661.9,2661.4,6.75737]
[1739474168606,0.0075,2661.8,2660.9,3.6345104]
[1739474168803,3.75711,2661.7,2661.1,3.75775]
[1739474169002,3.75711,2661.7,2661.1,6.75775]
[1739474169209,0.015,2661.6,2661.1,6.75775]
[1739474169519,0.015,2661.6,2661.2,3.75769]
[1739474169727,3.77179,2661.9,2661.2,4.809187]
[1739474169936,3.75693,2661.8,2661.2,4.809187]
[1739474170332,3.757,2661.7,2661.2,4.809187]
[1739474170953,3.757,2661.7,2661.2,8.566797]
[1739474171142,3.757,2661.7,2661.2,4.809177]
[1739474171359,3.757,2661.7,2661.2,8.566797]
[1739474171512,3.757,2661.7,2661.3,1.1566797]
[1739474171858,3.7569,2661.8,2661.3,1.1566797]
[1739474172008,3.7568,2661.9,2661.4,3.0]
[1739474172217,4.0508,2661.9,2661.4,3.0]
[1739474172559,4.0508,2661.9,2661.4,4.24841997]
[1739474172765,0.294,2661.9,2661.1,3.75774]
[1739474172940,3.75706,2661.7,2661.1,3.75774]
[1739474173149,3.75706,2661.7,2661.2,3.0]
[1739474173519,3.75706,2661.7,2661.2,6.7577]
[1739474173814,3.75692,2661.8,2661.3,3.75749]